{"text_format":"3","workbook":"xlsx","n_sheets":1,"sheets":["PRICING SCHEDULE"],"not_rendered":{"images":1,"defined_names":2},"read":"whole","date_system":"1900"}

{"sheet":"PRICING SCHEDULE","index":0,"n_rows":33,"n_cols":23,"rows_kept":33,"merged":[[11,2,11,3],[12,2,12,3],[12,5,14,5],[13,2,13,3],[14,2,14,3],[16,4,16,6],[16,7,16,9],[16,10,16,12],[16,13,16,15],[16,16,16,18],[29,1,32,1],[29,2,29,3],[29,4,29,5],[30,2,30,3],[31,2,31,3],[31,4,31,5],[32,2,32,3],[32,4,32,5]]}
[null,"SUPPLY CHAIN MANAGEMENT"]
[null,"Pricing schedule"]
["RFx No","WO81548"]
["RFx Title","REQUEST FOR BID FOR THE PROCUREMENT OF A MAINTENANCE AND SUPPORT CONTRACT FOR THE OSIS SERVER HARDWARE AND NMS SERVER HARDWARE AND SOFTWARE FOR A PERIOD OF FIVE (5) YEARS"]
["Bidder Name "]
[]
["1. INSTRUCTION FOR COMPLETING THE PRICING SCHEDULE"]
["(a) Bidder must complete/enter YELLOW cells only"]
["(b) Unit and Line prices must be VAT EXCLUSIVE and in South African Rand (ZAR) currency."]
["(c) The price must include all cost to deliver the goods or render the service, including all applicable taxes, duty fees, logistics/delivery, storage, labour, overtime and subsistance and travel"]
["(d) Prices that are dependent on Rate of Exchange (ROE) must use ROE indicated below, then enter in Column \"Forex %\" the percentage of the price that is ROE dependent (0% means the price is not ROE dependent)"]
[null,"Foreign currency","South African Rand (ZAR) exchange rate "]
[null,"1 US Dollar",{"v":16.23,"d":"R16.23"},null,null,"Mark with an X, which ROE is applicable"]
[null,"1 Euro",{"v":18.83,"d":"R18.83"}]
[null,"1 Pound (UK)",{"v":21.77,"d":"R21.77"}]
[]
[{"$nulls":4},"YEAR 1",null,null,"YEAR 2",null,null,"YEAR 3",null,null,"YEAR 4",null,null,"YEAR 5",null,null,"TOTAL"]
["Item No","Goods/Service description","Unit of measure","Forex %","Qty ","Unit Price \n(Excl VAT)","Line Price Y1","Qty","Unit Price \n(Excl VAT)","Line Price Y2","Qty","Unit Price \n(Excl VAT)","Line Price Y3","Qty","Unit Price \n(Excl VAT)","Line Price Y4","Qty","Unit Price \n(Excl VAT)","Line Price Y5","Line Price Term \n(Excl VAT)","Forex Price portion","BRAND / MODEL","Price clarification comment"]
[1,"Maintenance and Support: 6 Server Hardware - OSIS",{"$nulls":4},{"$f":"SUBTOTAL(9,G20:G20)","v":0},null,null,{"$f":"SUBTOTAL(9,J20:J20)","v":0},null,null,{"$f":"SUBTOTAL(9,M20:M20)","v":0},null,null,{"$f":"SUBTOTAL(9,P20:P20)","v":0},null,null,{"$f":"SUBTOTAL(9,S20:S20)","v":0},{"$f":"SUBTOTAL(9,T20:T20)","v":0},{"$f":"SUBTOTAL(9,U20:U20)","v":0}]
["1.1","Hardware per server:\nChassis\nCode: SYS-6029UZ-TR4+; Description: 2U Rack LGA3647 24DIMM 12X3.5\" 4X1GB LAN RPSU; Quantity: x1\nCPU\nCode: P4X-SKL6132-SR3J3; Description: SKL-SP 6132 14C/28T 2.6G per CPU; Quantity: x2\nRAM\nCode: MEM-DR464L-SL01-ER29; Description: 64GB DDR4-2933 2Rx4 LP ECC RDIMM; Quantity: x8\nHW RAID\nCode: AOC-S3108L-H8IR-16DD; Description: 8 ports 12Gb/s - RAID 0,1,10,5,6,50,60; Quantity: x1\nBBU\nCode: BTR-CV3108-U1; Description: Battery BackUp; Quantity: x1\nLAN\nCode: AOC-SGP-i4; Description: 4-port GbE LP card; Quantity: x2\nLAN\nCode: AOC-STG-I4S; Description: 4-port 10Gbe SFP+ LP card; Quantity: x1\nTransceivers\nCode: AOC-E10GSFPSR; Description: 1G/10G Dual-Rate SFP+ Short Range Transceiver; Quantity: x4\nHDD\nCode: HDD-2A900-ST900MP0006; Description: Seagate 2.5\",900GB,SAS3 12Gb/s,15K RPM; Quantity: x8","Annually",null,1,0,{"$f":"E20*F20","v":0},1,0,{"$f":"H20*I20","v":0},1,0,{"$f":"K20*L20","v":0},1,0,{"$f":"N20*O20","v":0},1,0,{"$f":"Q20*R20","v":0},{"$f":"SUM(G20,J20,M20,P20,S20)","v":0},{"$f":"D20*T20","v":0}]
[2,"Maintenance and Support: 14 Server hardware - NMS ",{"$nulls":4},{"$f":"SUBTOTAL(9, G22:G22)","v":0},null,null,{"$f":"SUBTOTAL(9, J22:J22)","v":0},null,null,{"$f":"SUBTOTAL(9, M22:M22)","v":0},null,null,{"$f":"SUBTOTAL(9, P22:P22)","v":0},null,null,{"$f":"SUBTOTAL(9, S22:S22)","v":0},{"$f":"SUBTOTAL(9, T22:T22)","v":0},{"$f":"SUBTOTAL(9, U22:U22)","v":0}]
["2.1","Hardware per server:\nChassis\nCode: SYS-6029P-WTR; Description: 2U Rack LGA3647 12DIMM 8X3.5\" 2X1GB LAN RPSU; Quantity: 1\nCPU\nCode: P4X-SKL6128-SR3J4; Description: SKL-SP 6128 6C/12T 3.4G per CPU; Quantity: 2\nRAM\nCode: MEM-DR464L-SL01-ER29; Description: 64GB DDR4-2933 2Rx4 LP ECC RDIMM; Quantity: 8\nHW RAID\nCode: AOC-S3108L-H8IR-16DD; Description: 8 ports 12Gb/s - RAID 0,1,10,5,6,50,60; Quantity: 1\nBBU\nCode: BTR-TFM8G-LSICVM02; Description: Battery BackUp; Quantity: 1\nLAN\nCode: AOC-SGP-i4; Description: 4-port GbE LP card; Quantity: 1\nHDD\nCode: HDD-A2000-ST2000NM0045; Description: Seagate 3.5\" 2TB SAS 12Gb/s 7.2K RPM; Quantity: 8","Annually",null,1,0,{"$f":"E22*F22","v":0},1,0,{"$f":"H22*I22","v":0},1,0,{"$f":"K22*L22","v":0},1,0,{"$f":"N22*O22","v":0},1,0,{"$f":"Q22*R22","v":0},{"$f":"SUM(G22,J22,M22,P22,S22)","v":0},{"$f":"D22*T22","v":0}]
[3,"Server operating system software (14)",{"$nulls":4},{"$f":"SUBTOTAL(9, G24:G24)","v":0},null,null,{"$f":"SUBTOTAL(9, J24:J24)","v":0},null,null,{"$f":"SUBTOTAL(9, M24:M24)","v":0},null,null,{"$f":"SUBTOTAL(9, P24:P24)","v":0},null,null,{"$f":"SUBTOTAL(9, S24:S24)","v":0},{"$f":"SUBTOTAL(9, T24:T24)","v":0},{"$f":"SUBTOTAL(9, U24:U24)","v":0}]
["3.1","Maintenance and Support: Red Hat Enterprise Linux Server (latest version)","Annually",null,1,0,0,1,0,0,1,0,0,1,0,{"$f":"N24*O24","v":0},1,0,{"$f":"Q24*R24","v":0},0,0]
[null,"TOTAL BID PRICE  (EXCL VAT)",{"$nulls":4},{"$f":"SUBTOTAL(9,G19:G24)","v":0},null,null,{"$f":"SUBTOTAL(9,J19:J24)","v":0},null,null,{"$f":"SUBTOTAL(9,M19:M24)","v":0},null,null,{"$f":"SUBTOTAL(9,P19:P24)","v":0},null,null,{"$f":"SUBTOTAL(9,S19:S24)","v":0},{"$f":"SUBTOTAL(9,T19:T24)","v":0},{"$f":"SUBTOTAL(9,U19:U24)","v":0}]
[null,"VAT (@15%)",{"$nulls":4},{"$f":"G25*0.15","v":0},null,null,{"$f":"J25*0.15","v":0},null,null,{"$f":"M25*0.15","v":0},null,null,{"$f":"P25*0.15","v":0},null,null,{"$f":"S25*0.15","v":0},{"$f":"T25*0.15","v":0}]
[null,"TOTAL  BID PRICE (INCL VAT)",{"$nulls":4},{"$f":"G25+G26","v":0},null,null,{"$f":"J25+J26","v":0},null,null,{"$f":"M25+M26","v":0},null,null,{"$f":"P25+P26","v":0},null,null,{"$f":"S25+S26","v":0},{"$f":"T25+T26","v":0}]
[]
[]
[null,"I, the bidder, confirm that the price(s) and rate(s) quoted cover all the goods and/or works specified in the bidding documents; that the price(s) or rate(s) cover all my obligations and I accept that any mistakes regarding price(s), rate(s) or calculations will be at my own risk.\n[Note: First convert to PDF, then add signature]"]
[null,null,"Name",null,"Capacity"]
[]
[null,null,"Signature (above)",null,"Date"]